{"text_format":"1","workbook":"xlsx","n_sheets":7,"sheets":["title","Р.1.1","Р.1.2","Р.2.1","Р.2.2","Р.3","Р.4"],"not_rendered":{"charts":0,"images":0,"macros":1,"external_links":0,"defined_names":0,"comments":5,"pivot_tables":0},"unopened":[],"bounds":{"document_bytes":16777216,"sheet_cells":100000,"rows_first":2000,"rows_last":500,"rows_between":2000,"halvings":0,"cell_chars":16384,"cell_head_chars":4096},"cells_cut":0,"cells_raw":0,"read":"whole","date_system":"1900"}

{"sheet":"title","index":0,"n_rows":26,"n_cols":5,"rows_kept":26,"cut":false,"hidden":false,"merged":[[4,3,4,4],[2,3,2,4],[7,1,7,4],[10,1,10,4],[23,2,23,4],[9,1,9,4],[24,2,24,4],[26,2,26,4],[21,2,21,4],[11,2,11,4],[15,1,15,2],[16,1,16,2],[12,1,12,4],[13,1,13,4],[22,2,22,4],[25,2,25,4]]}
[]
[null,null,null,"ЗАТВЕРДЖЕНО"]
[null,null,null,"Наказ Міністерства фінансів України "]
[null,null,null,"27 березня 2014 року № 347"]
[null,null,null,"(у редакції наказу Міністерства \nфінансів України "]
[null,null,null,"від 28 липня 2022 року № 218)"]
[]
[null,"ЗВІТНІСТЬ"]
[]
[null,"Звіт (зведений звіт)"]
[null," про результати діяльності підрозділу внутрішнього аудиту"]
[null,"в ","Конституційний Суд України"]
[null,"(найменування державного органу чи бюджетної установи) "]
[null,"за 2022 рік"]
[]
[null,"Подають:",null,"Терміни подання","Форма № 1-ДВА \n(річна)"]
[null,"Міністерства, інші центральні органи виконавчої влади, Рада міністрів Автономної Республіки Крим, обласні, Київська та Севастопольська міські державні адміністрації, інші головні розпорядники коштів державного бюджету - Міністерству фінансів України",null,"Не пізніше\nніж\n01 лютого\nроку,\nнаступного за звітним\n","ЗАТВЕРДЖЕНО \nНаказ Міністерства фінансів України\n27 березня 2014 року № 347 (зі змінами)\n\nза погодженням \nз Держстатом "]
[]
[null,"Респондент:"]
[]
[]
[null,"Код за ЄДРПОУ","00013534"]
[null,"Найменування:","Конституційний Суд України"]
[null,"Місцезнаходження:","01033, м. Київ, вул. Жилянська, буд.14"]
[null,null,"(поштовий індекс, область/Автономна Республіка Крим, район, населений пункт,\n  вулиця/провулок, площа тощо, № будинку/корпусу, № офісу)"]
[null,"Електронна пошта:","grytsenko.iurii@gmail.com"]

{"sheet":"Р.1.1","index":1,"n_rows":27,"n_cols":7,"rows_kept":27,"cut":false,"hidden":false,"merged":[[4,1,5,1],[4,2,5,2],[4,3,5,3],[4,4,4,6],[1,1,1,6],[2,1,2,6]]}
[]
[null,"Розділ І. Організація діяльності з внутрішнього аудиту"]
[null,"1. Організаційні та функціональні аспекти діяльності підрозділів ВА"]
[]
[null,null,"Код рядка","Всього ","У тому числі"]
[null,null,null,null,"в апараті державного органу","у територіальних органах","у бюджетних установах"]
[null,"А","Б",1,2,3,4]
[null,"Кількість підрозділів ВА в системі державного органу (всього), у тому числі (од.):",1000,{"$f":"SUM(E8,F8,G8)","v":1},{"$f":"SUM(E9:E10)","v":1},{"$f":"SUM(F9:F10)","v":0},{"$f":"SUM(G9:G10)","v":0}]
[null,"Кількість самостійних структурних підрозділів ВА ",1100,{"$f":"SUM(E9,F9,G9)","v":1},1,"-"]
[null,"Кількість підрозділів ВА, які знаходяться у складі інших структурних підрозділів",1200,{"$f":"SUM(E10,F10,G10)","v":0},"-","-","-"]
[null,"Чисельність внутрішніх аудиторів у системі державного органу (од.):",2000,"х","х","х","х"]
[null,"Штатна чисельність працівників",2100,{"$f":"SUM(E12,F12,G12)","v":1},1,"-","-"]
[null,"Фактична чисельність працівників, з них:",2200,{"$f":"SUM(E13,F13,G13)","v":1},1,"-","-"]
[null,"Чисельність сертифікованих працівників",2210,{"$f":"SUM(E14,F14,G14)","v":0},0,"-","-"]
[null,"Динаміка фактичної чисельності працівників у підрозділах ВА (од.):",3000,"х","х","х","х"]
[null,"Кількість призначених працівників у підрозділи ВА",3100,{"$f":"SUM(E16,F16,G16)","v":1},1,"-","-"]
[null,"Кількість звільнених працівників із підрозділів ВА ",3200,{"$f":"SUM(E17,F17,G17)","v":0},0,"-","-"]
[null,"Інформація про організаційну незалежність підрозділів ВА (од.):",4000,"х","х","х","х"]
[null,"Кількість підрозділів ВА, які підпорядковані безпосередньо міністру, керівнику іншого державного органу або керівнику бюджетної установи ",4100,{"$f":"SUM(E19,F19,G19)","v":1},1,"-","-"]
[null,"Кількість підрозділів ВА, які не підпорядковані безпосередньо міністру, керівнику іншого державного органу або керівнику бюджетної установи",4200,{"$f":"SUM(E20,F20,G20)","v":0},0,"-","-"]
[null,"Інформація про функціональну незалежність підрозділів ВА:",5000,"х","х","х","х"]
[null,"Кількість підрозділів ВА, на яких покладено виконання функцій, не пов’язаних зі здійсненням внутрішнього аудиту (од.):",5100,{"$f":"SUM(E22,F22,G22)","v":0},0,"-","-"]
[null,"Кількість комісійних перевірок, службових розслідувань, інших контрольних заходів, не пов’язаних із внутрішнім аудитом, у яких брали участь працівники підрозділів ВА (од.):",5200,{"$f":"SUM(E23,F23,G23)","v":1},1,"-","-"]
[null,"Витрачено робочого часу,\n(людино-днів)",5210,{"$f":"SUM(E24,F24,G24)","v":15},15,"-","-"]
[null,"Інформація про об'єкти внутрішнього аудиту, включені до бази даних (од.):",6000,"х","х","х","х"]
[null,"Кількість об’єктів внутрішнього аудиту",6100,32,32,"-","-"]
[null,"Кількість структурних підрозділів апарату та підприємств, установ і організацій, які належать до сфери управління",6200,17,17,"-","-"]

{"sheet":"Р.1.2","index":2,"n_rows":9,"n_cols":8,"rows_kept":9,"cut":false,"hidden":false,"merged":[[1,1,1,7],[3,1,4,1],[3,2,4,2],[3,3,3,4],[3,5,3,6],[3,7,4,7]]}
[]
[null,"2. Стан планування та здійснення діяльності з внутрішнього аудиту"]
[]
[null,null,"Код рядка","Заплановано в плані ",null,"Фактично  виконано",null,"Виконання плану, %"]
[null,null,null,"Кількість\n(од.)","Обсяг робочого часу, людино-днів","Кількість\n(од.)","Використано робочого часу, людино-днів"]
[null,"А","Б",1,2,3,4,5]
[null,"Внутрішні аудити та заходи з іншої діяльності з внутрішнього аудиту (всього), з них:",1000,20,186,18,186,{"$f":"IFERROR(F7/D7, 0)","v":0.9}]
[null,"Внутрішні аудити (всього), з них щодо ",1100,5,132,3,94,{"$f":"IFERROR(F8/D8, 0)","v":0.6}]
[null,"Оцінки ефективності виконання завдань та  функцій, визначених актами законодавства",1110,5,132,3,94,0.6]

{"sheet":"Р.2.1","index":3,"n_rows":16,"n_cols":5,"rows_kept":16,"cut":false,"hidden":false,"merged":[[1,1,1,4],[2,1,2,4]]}
[]
[null,"Розділ ІІ. Проведення внутрішніх аудитів"]
[null,"1. Стан проведення внутрішніх аудитів"]
[null,null,null,null,"(одиниць)"]
[null,null,"Код рядка","Загальна кількість","У тому числі підрозділом \nВА апарату \nдержавного органу"]
[null,"А","Б",1,2]
[null,"Проведено внутрішніх аудитів (всього), з них:",1000,{"$f":"SUM(D8:D9)","v":3},{"$f":"SUM(E8:E9)","v":3}]
[null,"Планові внутрішні аудити",1100,3,3]
[null,"Позапланові внутрішні аудити",1200,"-","-"]
[null,"Кількість внутрішніх аудитів, які тривають (всього), з них:",2000,{"$f":"SUM(D11:D12)","v":0},{"$f":"SUM(E11:E12)","v":0}]
[null,"Планові внутрішні аудити",2100,"-","-"]
[null,"Позапланові внутрішні аудити",2200,"-","-"]
[null,"Складено аудиторських звітів (всього), з них:",3000,3,3]
[null,"Аудиторські звіти, до яких надано коментарі",3100,"-","-"]
[null,"Надано коментарів до аудиторських звітів (всього), з них:",4000,"-","-"]
[null,"Коментарі, які враховано",4100,"-","-"]

{"sheet":"Р.2.2","index":4,"n_rows":41,"n_cols":7,"rows_kept":41,"cut":false,"hidden":false,"merged":[[1,1,1,6],[3,3,3,4],[3,5,3,6],[3,1,4,1],[3,2,4,2]]}
[]
[null,"2. Показники за результатами проведених внутрішніх аудитів"]
[]
[null,null,"Код рядка","Всього",null,"У тому числі підрозділом ВА апарату \nдержавного органу"]
[null,null,null,"Кількість (од.)","Сума,\n(тис. грн)","Кількість (од.)","Сума,\n(тис. грн)"]
[null,"А","Б",1,2,3,4]
[null,"І. Загальні відомості",null,"х","х","х","х"]
[null,"Кількість установ, у яких проводився внутрішній аудит ",2110,2,"х",2,"х"]
[null,"Кількість установ, у яких виявлено недоліки/проблеми та порушення",2120,2,"х",2,"х"]
[null,"ІІ. Відомості про виявлені недоліки/проблеми (всього), з них щодо:",2200,53,"х",53,"х"]
[null,"Функціонування системи внутрішнього контролю",2210,26,"х",26,"х"]
[null,"Виконання і досягнення цілей, визначених у стратегічних та річних планах",2220,7,"х",7,"х"]
[null,"Планування і виконання бюджетних програм та результатів їх виконання, управління бюджетними коштами",2230,10,"х",10,"х"]
[null,"Якості надання адміністративних послуг",2240,"-","х","-","х"]
[null,"Виконання контрольно-наглядових функцій, завдань, визначених актами законодавства",2250,"-","х","-","х"]
[null,"Використання і збереження активів",2260,"-","х","-","х"]
[null,"Надійності, ефективності та результативності інформаційних систем і технологій",2270,6,"х",6,"х"]
[null,"Управління державним майном",2280,2,"х",2,"х"]
[null,"Правильності ведення бухгалтерського обліку та достовірності фінансової і бюджетної звітності",2290,2,"х",2,"х"]
[null,"ІІІ. Відомості про усунення виявлених недоліків/проблем",2300,"х","х","х","х"]
[null,"Усунуто недоліків/проблем, виявлених за результатами завершених у звітному періоді внутрішніх аудитів (всього),\nз них щодо:",2310,41,"х",41,"х"]
[null,"Функціонування системи внутрішнього контролю",2311,20,"х",20,"х"]
[null,"Виконання і досягнення цілей, визначених у стратегічних та річних планах",2312,6,"х",6,"х"]
[null,"Планування і виконання бюджетних програм та результатів їх виконання, управління бюджетними коштами",2313,7,"х",7,"х"]
[null,"Якості надання адміністративних послуг",2314,"-","х","-","х"]
[null,"Виконання контрольно-наглядових функцій, завдань, визначених актами законодавства",2315,"-","х","-","х"]
[null,"Використання і збереження активів",2316,"-","х","-","х"]
[null,"Надійності, ефективності та результативності інформаційних систем і технологій",2317,4,"х",4,"х"]
[null,"Управління державним майном",2318,2,"х",2,"х"]
[null,"Правильності ведення бухгалтерського обліку та достовірності фінансової і бюджетної звітності",2319,2,"х",2,"х"]
[null,"Усунуто недоліків/проблем, \nвиявлених у попередніх періодах",2320,"-","х","-","х"]
[null,"ІV. Відомості про виявлені \nпорушення (всього), з них:",2400,{"$f":"SUM(D33:D35)","v":53},{"$f":"SUM(E34,E35)","v":0},{"$f":"SUM(F33:F35)","v":53},{"$f":"SUM(G34,G35)","v":0}]
[null,"Нефінансові порушення",2410,53,"х",53,"х"]
[null,"Порушення, що призвели до втрат фінансових і матеріальних ресурсів",2420,"-","-","-","-"]
[null,"Порушення, що не призвели до втрат",2430,"-","-","-","-"]
[null,"V. Відомості про усунення виявлених порушень (всього), у тому числі:",2500,{"$f":"SUM(D37:D38,D40)","v":41},{"$f":"SUM(E38,E40)","v":0},{"$f":"SUM(F37:F38,F40)","v":41},{"$f":"SUM(G38,G40)","v":0}]
[null,"Забезпечено усунення нефінансових порушень",2510,41,"х",41,"х"]
[null,"Забезпечено усунення порушень, що призвели до втрат фінансових і матеріальних ресурсів, з них:",2520,"-","-","-","-"]
[null,"Забезпечено усунення порушень, що призвели до втрат фінансових і матеріальних ресурсів, виявлених у попередніх періодах",2521,"-","-","-","-"]
[null,"Забезпечено усунення порушень, що не призвели до втрат, з них: ",2530,"-","-","-","-"]
[null,"Забезпечено усунення порушень, що не призвели до втрат, виявлених у попередніх періодах",2531,"-","-","-","-"]

{"sheet":"Р.3","index":5,"n_rows":15,"n_cols":5,"rows_kept":15,"cut":false,"hidden":false,"merged":[[1,1,1,4]]}
[]
[null,"Розділ ІІІ. Результативність внутрішнього аудиту"]
[null,null,null,null,"(одиниць)"]
[null,null,"Код рядка","Загальна кількість","У тому числі за апаратом державного органу"]
[null,"А","Б",1,2]
[null,"І. Надано рекомендацій (всього), з них:",1000,{"$f":"SUM(D7:D8)","v":69},{"$f":"SUM(E7:E8)","v":69}]
[null,"Відхилено рекомендацій керівником ",1100,"-","-"]
[null,"Прийнято рекомендацій, з них:",1200,{"$f":"SUM(D9:D12)","v":69},{"$f":"SUM(E9:E12)","v":69}]
[null,"Рекомендації, щодо яких не настав термін виконання",1210,2,2]
[null,"Рекомендації, яких не виконано",1220,9,9]
[null,"Рекомендації, які виконано частково",1230,1,1]
[null,"Рекомендації, які виконано повністю, з них:",1240,57,57]
[null,"Виконані рекомендації, за якими досягнуто результативність",1241,57,57]
[null,"II. Виконані рекомендації, які було надано в попередніх періодах (всього), з них:",2000,"-","-"]
[null,"Виконані рекомендації, за якими досягнуто результативність",2100,"-","-"]

{"sheet":"Р.4","index":6,"n_rows":17,"n_cols":5,"rows_kept":17,"cut":false,"hidden":false,"merged":[[1,1,1,4],[16,2,16,4],[11,3,11,4]]}
[]
[null,"Розділ IV. Результати внутрішньої оцінки якості внутрішнього аудиту"]
[null,null,null,null,"(одиниць)"]
[null,null,"Код рядка","Всього","У тому числі за апаратом державного органу"]
[null,"А","Б",1,2]
[null,"Кількість виявлених внутрішніми  оцінками якості недоліків у здійсненні діяльності з внутрішнього аудиту",1000,"-","-"]
[null,"Кількість усунутих недоліків у здійсненні діяльності з внутрішнього аудиту, виявлених за результатами внутрішніх оцінок якості ",2000,"-","-"]
[]
[]
[null,"Керівник Секретаріату Конституційного Суду України",null,null,"Віктор БЕСЧАСТНИЙ"]
[null," (посада)"," (підпис)",null,"(Власне ім'я ПРІЗВИЩЕ)"]
[]
[null,"Головний спеціаліст з внутрішнього аудиту",null,null,"Юрій ГРИЦЕНКО"]
[null," (посада)"," (підпис)",null,"(Власне ім'я ПРІЗВИЩЕ)"]
[]
[]
[null,"Телефон підрозділу ВА ","044 238 13 15"]